[Event "Asian Zonal 3.2 Women 2019"]
[Site "Dhaka"]
[Date "2019.03.23"]
[Round "9.10"]
[White "Ranasinghe, S D"]
[Black "Parveen, Seyda Shabana"]
[Result "1-0"]
[ECO "A15"]
[WhiteElo "1829"]
[BlackElo "2073"]
[Annotator "NA RC"]
[PlyCount "111"]
[EventDate "2019.03.14"]
[EventType "swiss"]
[EventCountry "BAN"]
[SourceTitle "playchess.com"]
[Source "ChessBase"]
[SourceQuality "1"]
[TimeControl "5400+30"]

{[%evp 8,106,-10,-16,-17,-13,-4,0,0,-20,2,-14,-20,-29,0,-12,0,-2,0,-12,-13,-25,0,-26,-17,-53,-52,-51,-33,-50,-14,-45,6,18,0,-68,-40,-62,17,9,20,-14,37,0,0,0,49,32,86,23,54,36,47,0,17,-87,23,30,30,35,38,22,29,13,37,20,195,199,164,211,267,293,32767,32767,32767,32767,295,412,412,362,322,414,424,474,456,542,524,583,531,712,710,977,800,733,600,374,309,418,422,391,685]} 1. Nf3 {[%emt 0:00:00]} Nf6 {[%emt 0:00:00]} 2. e3 {[%emt 0:00:19]} g6 {[%emt 0:00:23]} 3. c4 {[%emt 0:01:12]} d6 {[%emt 0:00:21]} 4. b4 {[%emt 0:01:41]} Bg7 {[%emt 0:00:20]} 5. Bb2 {[%emt 0:00:05]} e5 {[%emt 0:02:51]} 6. d4 {[%emt 0:00:27] A15: English Opening: 1...Nf6} exd4 {[%emt 0:00:41]} 7. Nxd4 {[%emt 0:01:06] LiveBook: 4 Games} O-O {[%emt 0:01:15]} 8. Nb3 {[%emt 0:00:22]} (8. Be2 a5 9. b5 a4 10. O-O Re8 11. a3 Nbd7 12. Nc3 Nc5 13. h3 Bd7 14. Bf3 Rf8 15. Rb1 h5 16. Ba1 Nh7 17. Qc2 Re8 18. Bd5 Nf6 19. Bf3 {½-½ (19) Kural,A (2380)-Ljubicic,L (2592) ICCF email 2016}) 8... Re8 {[%emt 0:03:09]} (8... a5 $5) 9. Be2 {[%emt 0:01:00]} Nc6 {[%emt 0:01:40]} 10. a3 $146 {[%emt 0:00:35]} ({Predecessor:} 10. b5 Ne5 11. Nc3 Be6 12. Nd5 Ne4 13. Qc2 f5 {1-0 (25) Pietrzak,J-Rosikiewicz,W Poland 1991}) 10... h5 {[%emt 0:04:41]} 11. O-O {[%emt 0:02:08]} Bf5 {[%emt 0:02:45]} 12. N1d2 {[%emt 0:01:12]} Qe7 {[%emt 0:05:58]} 13. Bf3 {[%emt 0:01:27]} Bg4 {[%emt 0:05:57]} 14. Rc1 {[%emt 0:03:38]} Ne5 {[%emt 0:04:48]} 15. Bxg4 {[%emt 0:00:32]} hxg4 {[%emt 0:03:16]} 16. Nb1 {[%emt 0:04:47]} Kh7 {[%emt 0:05:06]} 17. c5 {[%emt 0:12:29]} Rad8 {[%emt 0:12:44]} 18. Qe2 {[%emt 0:02:26]} Rh8 {[%emt 0:00:42]} 19. cxd6 {[%emt 0:04:07]} cxd6 {[%emt 0:02:15]} 20. N1d2 {[%emt 0:07:27]} Kg8 {[%emt 0:00:48]} 21. Bxe5 {[%emt 0:05:02]} (21. Rc2 $11) 21... Qxe5 {[%emt 0:05:31]} 22. f4 {[%emt 0:01:01]} Qh5 {[%emt 0:03:59]} (22... gxf3 $15 23. Nxf3 Qe7) 23. g3 {[%emt 0:00:05]} Re8 {[%emt 0:00:02]} 24. Rf2 {[%emt 0:01:10]} g5 {[%emt 0:04:17]} 25. Qd3 {[%emt 0:04:14]} gxf4 {[%emt 0:00:46]} 26. exf4 {[%emt 0:00:09]} d5 {[%emt 0:01:46]} 27. Nf1 {[%emt 0:01:26]} (27. Rc7 $16) 27... Ne4 {[%emt 0:03:16]} 28. Rfc2 {[%emt 0:00:59]} Bf6 {[%emt 0:04:00]} 29. Nc5 {[%emt 0:03:28]} b6 {[%emt 0:09:16]} 30. Nxe4 {[%emt 0:00:19]} dxe4 {[%emt 0:01:22]} 31. Qd7 {[%emt 0:00:06]} (31. Qe3 $11) 31... Kg7 {[%emt 0:00:27]} (31... Rd8 $17 32. Qb7 Kg7) 32. Ne3 {[%emt 0:01:18]} Re6 {[%emt 0:02:14]} 33. Qd1 {[%emt 0:02:22]} Rd8 {[%emt 0:01:05]} 34. Qxg4+ {[%emt 0:00:19]} Qxg4 {[%emt 0:00:14]} 35. Nxg4 {[%emt 0:00:04]} Bd4+ {[%emt 0:00:46]} 36. Kf1 {[%emt 0:01:14]} e3 $2 {[%emt 0:01:02]} ({Black should try} 36... f5 $14 37. Rc7+ Kf8) 37. Ke2 {[%emt 0:00:56]} f5 {[%emt 0:02:02]} 38. Rc7+ {[%emt 0:00:15]} Kg6 {[%emt 0:00:04]} 39. R1c6 {[%emt 0:00:52]} Rdd6 {[%emt 0:02:04]} 40. Rxd6 {[%emt 0:00:00]} Rxd6 {[%emt 0:00:00]} 41. Ne5+ {[%emt 0:00:00]} Bxe5 {[%emt 0:00:00]} 42. fxe5 {[%emt 0:00:00]} Re6 {[%emt 0:00:00]} 43. Kxe3 {[%emt 0:00:00]} Rxe5+ {[%emt 0:00:00]} 44. Kf3 {[%emt 0:00:00]} Rd5 {[%emt 0:00:00]} 45. Rxa7 {[%emt 0:00:00]} Rd3+ {[%emt 0:00:00]} 46. Kf4 {[%emt 0:00:00]} Rd2 {[%emt 0:00:00]} 47. Ra6 {[%emt 0:00:00]} Rf2+ {[%emt 0:00:00]} 48. Ke3 {[%emt 0:00:00]} Rxh2 {[%emt 0:00:00]} 49. Rxb6+ {[%emt 0:00:00]} Kg5 {[%emt 0:00:00]} 50. Rb8 {[%emt 0:00:00]} Ra2 {[%emt 0:00:00]} 51. Rg8+ {[%emt 0:00:00]} (51. Ra8 $142 Kf6 52. Kd4) 51... Kf6 {[%emt 0:00:00]} 52. Ra8 {[%emt 0:00:00]} Rb2 {[%emt 0:00:00]} 53. Rd8 {[%emt 0:00:00]} Kg5 $18 {[%emt 0:00:00]} (53... Rg2 54. Rf8+ Ke5) 54. Rd3 {[%emt 0:00:00]} Kg4 {[%emt 0:00:00]} 55. Kd4 {[%emt 0:00:00]} Rg2 {[%emt 0:00:00]} 56. b5 {[%emt 0:00:00]} 1-0

[Event "Asian Zonal 3.2 Women 2019"]
[Site "Dhaka"]
[Date "2019.03.23"]
[Round "9.12"]
[White "Jannatul, Ferdous"]
[Black "Noshin, Anjum"]
[Result "1-0"]
[ECO "C56"]
[WhiteElo "1704"]
[BlackElo "1722"]
[Annotator "NA RC"]
[PlyCount "107"]
[EventDate "2019.03.14"]
[EventType "swiss"]
[EventCountry "BAN"]
[SourceTitle "playchess.com"]
[Source "ChessBase"]
[SourceQuality "1"]
[TimeControl "5400+30"]

1. e4 {[%emt 0:00:00]} e5 {[%emt 0:01:15]} 2. Nf3 {[%emt 0:00:00]} Nc6 {[%emt 0:00:05]} 3. d4 {[%emt 0:00:00]} exd4 {[%emt 0:00:49]} 4. Bc4 {[%emt 0:00:16]} Nf6 {[%emt 0:00:14]} 5. Ng5 {[%emt 0:00:59]} Ne5 {[%emt 0:04:37]} 6. Qxd4 {[%emt 0:09:38]} Qe7 {[%emt 0:00:37]} 7. O-O {[%emt 0:10:19]} Qc5 {[%emt 0:00:32]} 8. Qxc5 {[%emt 0:02:28]} Bxc5 {[%emt 0:00:07]} 9. Bd3 {[%emt 0:00:50]} h6 {[%emt 0:03:53]} 10. Nh3 {[%emt 0:01:31]} d5 {[%emt 0:13:19]} 11. exd5 {[%emt 0:00:47]} Nxd3 {[%emt 0:00:41]} 12. cxd3 {[%emt 0:00:30]} Bxh3 {[%emt 0:00:46]} 13. gxh3 {[%emt 0:01:45]} O-O-O {[%emt 0:09:41]} 14. Be3 {[%emt 0:01:50]} Bxe3 {[%emt 0:05:39]} 15. fxe3 {[%emt 0:00:20]} Rxd5 {[%emt 0:00:11]} 16. d4 {[%emt 0:01:55]} Re8 {[%emt 0:00:19]} 17. Nc3 {[%emt 0:02:10]} Rg5+ {[%emt 0:02:20]} 18. Kf2 {[%emt 0:03:38]} Rh5 {[%emt 0:02:34]} 19. Rg1 {[%emt 0:01:19]} Rxh3 {[%emt 0:04:25]} 20. Rxg7 {[%emt 0:01:17]} Rexe3 {[%emt 0:13:56]} 21. Rc1 {[%emt 0:06:30]} Re7 {[%emt 0:05:01]} 22. Rg2 {[%emt 0:07:52]} Rd3 {[%emt 0:01:38]} 23. Nb5 {[%emt 0:05:54]} a6 {[%emt 0:09:50]} 24. Nd6+ {[%emt 0:02:00]} Kb8 {[%emt 0:00:10]} 25. Nf5 {[%emt 0:01:18]} Rd2+ {[%emt 0:01:15]} 26. Kf3 {[%emt 0:02:27]} Rxg2 {[%emt 0:00:21]} 27. Kxg2 {[%emt 0:01:51]} Re2+ {[%emt 0:00:10]} 28. Kg1 {[%emt 0:02:12]} h5 {[%emt 0:01:14]} 29. Rb1 {[%emt 0:01:18]} Ng4 {[%emt 0:03:57]} 30. h3 {[%emt 0:01:13]} Ne3 {[%emt 0:08:19]} 31. Nh4 {[%emt 0:02:35]} Nc4 {[%emt 0:00:45]} 32. b3 {[%emt 0:01:25]} Nd6 {[%emt 0:00:07]} 33. a4 {[%emt 0:00:54]} Re3 {[%emt 0:00:38]} 34. Kg2 {[%emt 0:00:32]} Rd3 {[%emt 0:00:35]} 35. Nf3 {[%emt 0:00:49]} f6 {[%emt 0:00:21]} 36. Kf2 {[%emt 0:01:04]} Nf5 {[%emt 0:01:08]} 37. Ke2 {[%emt 0:01:01]} Re3+ {[%emt 0:00:08]} 38. Kf2 {[%emt 0:00:22]} Re4 {[%emt 0:00:37]} 39. Rd1 {[%emt 0:03:04]} Kc8 {[%emt 0:00:14]} 40. Rd3 {[%emt 0:00:00]} Kd7 {[%emt 0:00:00]} 41. d5 {[%emt 0:00:00]} Kd6 {[%emt 0:00:00]} 42. Rc3 {[%emt 0:00:00]} Nh4 {[%emt 0:00:00]} 43. Nd2 {[%emt 0:00:00]} Rd4 {[%emt 0:00:00]} 44. Nc4+ {[%emt 0:00:00]} Kxd5 {[%emt 0:00:00]} 45. Ne3+ {[%emt 0:00:00]} Kd6 {[%emt 0:00:00]} 46. Kg3 {[%emt 0:00:00]} Kd7 {[%emt 0:00:00]} 47. Rc5 {[%emt 0:00:00]} Rd3 {[%emt 0:00:00]} 48. Rd5+ {[%emt 0:00:00]} Rxd5 {[%emt 0:00:00]} 49. Nxd5 {[%emt 0:00:00]} Nf5+ {[%emt 0:00:00]} 50. Kf4 {[%emt 0:00:00]} Ng7 {[%emt 0:00:00]} 51. Nxf6+ {[%emt 0:00:00]} Ke7 {[%emt 0:00:00]} 52. Nd5+ {[%emt 0:00:00]} Kd6 {[%emt 0:00:00]} 53. Ne3 {[%emt 0:02:09]} Ke6 {[%emt 0:00:00]} 54. h4 {[%emt 0:02:49] Kd5 [%clk 0:00:00] Ke4+ Ke5+ [%clk 0:00:00]} 1-0